[Event "MPL-4 Indian Chess Tour 2022"]
[Site "Chess24"]
[Date "2022.09.27"]
[Round "11.3"]
[White "Bharath Subramaniyam H"]
[Black "Aditya Mittal"]
[Result "1/2-1/2"]
[ECO "B52"]
[WhiteElo "2495"]
[BlackElo "2485"]
[Annotator "TA"]
[PlyCount "81"]
[EventDate "2022.09.29"]
[EventType "tourn (rapid)"]
[EventCountry "NET"]
[SourceTitle "playchess.com"]
[Source "ChessBase"]
[SourceQuality "1"]
[WhiteTeam "India"]
[BlackTeam "India"]
[WhiteTeamCountry "IND"]
[BlackTeamCountry "IND"]
[TimeControl "900+10"]

{[%evp 9,81,7,6,4,10,2,18,20,45,18,35,15,29,23,25,21,32,24,43,45,126,55,57,33,25,43,31,33,37,1,4,14,27,12,27,16,79,80,67,39,36,35,39,46,56,16,11,0,0,0,0,0,0,0,0,0,0,0,0,0,0,0,0,0,0,0,0,0,0,0,0,0,0,0]} 1. e4 {[%emt 0:00:00]} c5 {[%emt 0:00:00]} 2. Nf3 {[%emt 0:00:02]} d6 {[%emt 0:00:01]} 3. Bb5+ {[%emt 0:00:02]} Bd7 {[%emt 0:00:02]} 4. c4 {[%emt 0:00:03]} Nc6 {[%emt 0:00:02]} 5. Nc3 {[%emt 0:00:13]} e5 {[%emt 0:00:13]} 6. d3 {[%emt 0:00:08] B52: Sicilian: Moscow Variation with 3...Bd7.} Nge7 {[%emt 0:00:37]} 7. a3 {[%emt 0:01:31]} h6 {[%emt 0:01:18]} 8. O-O {[%emt 0:01:42] [#]} g5 $146 {[%emt 0:00:12]} ({Predecessor:} 8... g6 9. b4 Bg7 10. Be3 Nd4 11. Bxd7+ Qxd7 12. bxc5 dxc5 13. Nd5 Nxd5 14. Bxd4 exd4 15. exd5 {1-0 (45) Kantans,T (2491)-Mucha,R (2190) Jastrzebia Gora 2016}) 9. b4 {[%emt 0:01:21]} Bg7 {[%emt 0:02:00]} 10. Ne1 {[%emt 0:00:48]} O-O {[%emt 0:01:00]} 11. Nc2 {[%emt 0:00:36]} f5 {[%emt 0:01:23]} 12. exf5 {[%emt 0:00:54]} Bxf5 {[%emt 0:00:15][%cal Oe5e4]} 13. Ne4 {[%emt 0:01:32]} cxb4 {[%emt 0:02:04]} 14. axb4 {[%emt 0:00:13]} d5 {[%emt 0:00:11]} (14... a6 $14 15. Bxc6 bxc6) 15. Nc5 {[%emt 0:01:18] White is more active.} (15. cxd5 $16 Nxd5 16. Bc4) 15... a6 {[%emt 0:02:46]} 16. Nxb7 {[%emt 0:01:05]} (16. Bxc6 $5 bxc6 17. Ne3 $14) 16... Qc7 {[%emt 0:00:55]} 17. Bxc6 {[%emt 0:00:37]} Qxc6 {[%emt 0:00:03]} 18. Na5 {[%emt 0:00:11]} Qg6 {[%emt 0:00:02]} 19. Ra3 {[%emt 0:01:17] next Ne3 is good for White.} dxc4 $1 {[%emt 0:00:32]} 20. Nxc4 {[%emt 0:00:09]} Rfd8 {[%emt 0:00:05][%cal Rf5d3]} 21. Nb2 {[%emt 0:00:28]} Nd5 {[%emt 0:00:54]} 22. Ne3 {[%emt 0:01:05]} e4 {[%emt 0:01:17]} (22... Be6 $11) 23. Nxf5 $16 {[%emt 0:00:41]} Qxf5 {[%emt 0:00:00]} 24. dxe4 {[%emt 0:00:44]} Qxe4 {[%emt 0:00:00]} 25. Rd3 {[%emt 0:00:20] Hoping for Re1.} Kh7 {[%emt 0:00:11] [#] White must now prevent ...Nc3.} 26. f3 {[%emt 0:01:05]} Qf5 {[%emt 0:00:20]} 27. Qb3 {[%emt 0:00:26]} (27. g4 $5 {[%cal Rg4f5]} Qf7 28. Na4 $14) 27... Rab8 $1 {[%emt 0:01:06] The position is equal.} 28. Rfd1 {[%emt 0:00:45][%cal Rd3d5]} Rxb4 {[%emt 0:00:04]} (28... Rb5 {with more complications.} 29. h3 Rxb4 30. Qa3 Qc8) 29. Rxd5 {[%emt 0:00:24]} Rxb3 {[%emt 0:00:51]} 30. Rxf5 {[%emt 0:00:02]} Rxd1+ {[%emt 0:00:01]} 31. Nxd1 {[%emt 0:00:02] [#] aiming for Rd5.} Rb1 {[%emt 0:00:00]} 32. Be3 {[%emt 0:00:09] Strongly threatening Rd5.} Rxd1+ $11 {[%emt 0:00:04][%mdl 4096] Endgame KRB-KRB} 33. Kf2 {[%emt 0:00:00]} Kg6 {[%emt 0:00:41]} 34. Ra5 {[%emt 0:00:08]} Ra1 {[%emt 0:00:08]} 35. Rd5 {[%emt 0:00:41]} Ra2+ {[%emt 0:00:04]} 36. Kg3 {[%emt 0:00:04]} a5 {[%emt 0:00:04]} 37. h4 {[%emt 0:00:16][%cal Rh4g5]} gxh4+ {[%emt 0:00:10]} 38. Kxh4 {[%emt 0:00:01]} Rxg2 {[%emt 0:00:34]} 39. Rxa5 {[%emt 0:00:06]} Re2 {[%emt 0:00:01]} 40. Bf4 {[%emt 0:00:08]} Bf6+ {[%emt 0:00:34]} 41. Kh3 {[%emt 0:00:04] Weighted Error Value: White=0.10 (very precise) /Black=0.08 (flawless)} 1/2-1/2

[Event "MPL-4 Indian Chess Tour 2022"]
[Site "Chess24"]
[Date "2022.09.27"]
[Round "11.4"]
[White "Aronyak Ghosh"]
[Black "Puranik, Abhimanyu"]
[Result "1-0"]
[ECO "A34"]
[WhiteElo "2519"]
[BlackElo "2603"]
[Annotator "TA"]
[PlyCount "29"]
[EventDate "2022.09.29"]
[EventType "tourn (rapid)"]
[EventCountry "NET"]
[SourceTitle "playchess.com"]
[Source "ChessBase"]
[SourceQuality "1"]
[WhiteTeam "India"]
[BlackTeam "India"]
[WhiteTeamCountry "IND"]
[BlackTeamCountry "IND"]
[TimeControl "900+10"]

{[%evp 9,29,17,91,91,75,74,88,65,168,148,195,204,280,278,275,256,392,331,462,454,542,472]} 1. Nf3 {[%emt 0:00:00]} Nf6 {[%emt 0:00:00]} 2. g3 {[%emt 0:00:02]} c5 {[%emt 0:00:15]} 3. c4 {[%emt 0:00:45]} Nc6 {[%emt 0:00:19]} 4. Nc3 {[%emt 0:00:01]} d5 {[%emt 0:00:15]} 5. d4 {[%emt 0:00:02][%cal Bd2d4,Bd4d5][%mdl 32]} dxc4 {[%emt 0:02:26]} (5... e6 $11) 6. d5 $16 {[%emt 0:00:07] A34: Symmetrical English: 2 Nc3, lines with ...d5.} Nb4 {[%emt 0:00:07]} 7. e4 {[%emt 0:00:30] Prevents Bf5.} Bg4 {[%emt 0:01:40]} 8. Bxc4 {[%emt 0:00:08] White is better.} a6 {[%emt 0:00:01]} (8... Bxf3 $14 9. Qxf3 (9. Bb5+ Nd7 $17) 9... Nc2+ 10. Kf1 Qc8) 9. Be2 {[%emt 0:01:03] [#] Hoping for a3.} e6 $146 {[%emt 0:00:41] [#]} (9... c4 $16) ({Predecessor:} 9... Qa5 10. Ne5 Bxe2 11. Qxe2 Qc7 12. Bf4 g5 13. Nxf7 gxf4 14. Nxh8 f3 15. Qd2 Qe5 {0-1 (39) Penning Reef,E-Houdart,D (2155) Agneaux 2003}) 10. a3 $1 $18 {[%emt 0:00:29]} exd5 {[%emt 0:00:30]} 11. axb4 {[%emt 0:00:01] Strongly threatening e5.} d4 {[%emt 0:01:40]} 12. Na4 {[%emt 0:01:25] And now h3 would win.} cxb4 {[%emt 0:02:15]} (12... d3 {is a better defense.}) 13. Qxd4 {[%emt 0:00:33]} Nd7 {[%emt 0:01:30]} 14. Be3 {[%emt 0:01:25]} b5 {[%emt 0:01:48]} 15. Nb6 {[%emt 0:00:21] Black did not feel at home in the position after the opening.  Weighted Error Value: White=0.16 (very precise) /Black=0.70} 1-0

[Event "MPL-4 Indian Chess Tour 2022"]
[Site "Chess24"]
[Date "2022.09.27"]
[Round "11.5"]
[White "Iniyan, P."]
[Black "Pranav, V."]
[Result "1/2-1/2"]
[ECO "B30"]
[WhiteElo "2556"]
[BlackElo "2530"]
[Annotator "TA"]
[PlyCount "117"]
[EventDate "2022.09.29"]
[EventType "tourn (rapid)"]
[EventCountry "NET"]
[SourceTitle "playchess.com"]
[Source "ChessBase"]
[SourceQuality "1"]
[WhiteTeam "India"]
[BlackTeam "India"]
[WhiteTeamCountry "IND"]
[BlackTeamCountry "IND"]
[TimeControl "900+10"]

{[%evp 9,117,-93,-72,-80,-50,-54,-56,-65,-12,-12,-1,-4,-4,-11,37,39,45,46,57,53,47,46,71,84,53,47,55,57,54,0,26,14,35,21,14,20,21,22,21,29,21,24,48,0,0,0,25,34,37,16,12,0,37,12,12,14,18,11,12,0,47,33,22,18,74,74,75,82,142,0,79,0,0,0,0,0,0,0,0,-29,-29,-29,-29,-29,-29,-29,-29,-29,-29,-29,-29,-29,-29,-29,-29,-29,-14,-14,-14,-14,0,-12,0,0,0,-12,0,0,0,-12]} 1. e4 {[%emt 0:00:00]} c5 {[%emt 0:00:00]} 2. Nf3 {[%emt 0:00:04]} Nc6 {[%emt 0:00:01]} 3. g3 {[%emt 0:00:07]} d5 {[%emt 0:00:08]} 4. Nc3 {[%emt 0:00:38]} d4 {[%emt 0:00:26]} 5. Nd5 {[%emt 0:00:16] [#]} e6 $146 {[%emt 0:00:21]} ({Predecessor:} 5... Bg4 6. d3 e6 7. Bg5 Qxg5 8. Nc7+ Kd8 9. Nxa8 Kc8 10. Bh3 Kb8 11. Nxg5 Bxd1 12. Rxd1 {½-½ (44) Stanojevic,M-Gratschner,U freechess.de 2018}) 6. Nf4 {[%emt 0:00:02] B30: Sicilian: 2...Nc6 3 Bb5, lines without ...g6.} e5 {[%emt 0:00:06]} 7. Nd5 {[%emt 0:00:07]} Nf6 {[%emt 0:00:32]} 8. c4 {[%emt 0:01:22] Black is slightly better.} dxc3 {[%emt 0:01:04]} (8... Nxe4 $15 9. Qe2 Bg4) 9. Nxf6+ $11 {[%emt 0:00:22]} Qxf6 {[%emt 0:00:07]} 10. dxc3 {[%emt 0:00:01]} Bg4 {[%emt 0:00:53]} 11. Bg2 {[%emt 0:00:03]} Qg6 {[%emt 0:01:47]} (11... Rd8 $11 12. Qe2 Be7) 12. Nh4 $14 {[%emt 0:02:43]} Qe6 {[%emt 0:00:06]} 13. f3 {[%emt 0:00:17]} Bh3 {[%emt 0:00:21]} 14. O-O {[%emt 0:01:15]} Bxg2 {[%emt 0:00:40]} 15. Nxg2 {[%emt 0:00:00]} c4 {[%emt 0:00:20]} 16. Be3 {[%emt 0:00:08]} Be7 {[%emt 0:00:43]} 17. Qd5 {[%emt 0:00:12]} O-O {[%emt 0:01:28]} 18. Qxe6 {[%emt 0:01:25]} fxe6 {[%emt 0:00:02]} 19. b3 {[%emt 0:00:05]} (19. Kf2 $14) 19... Rfd8 {[%emt 0:02:14]} 20. Rfd1 {[%emt 0:00:21]} b5 {[%emt 0:00:49]} 21. Kf2 {[%emt 0:00:37]} b4 {[%emt 0:01:13]} 22. cxb4 {[%emt 0:00:45] White wants to play b5.} cxb3 {[%emt 0:00:28] Threatens to win with ...Rxd1.} (22... Rxd1 {seems wilder.} 23. Rxd1 cxb3 24. b5 Nd4) 23. Rxd8+ {[%emt 0:02:20]} Rxd8 {[%emt 0:00:24]} 24. axb3 {[%emt 0:00:00] Black must now prevent b5.} Bxb4 {[%emt 0:00:15]} 25. Ra6 {[%emt 0:00:28]} Rc8 {[%emt 0:00:31]} 26. g4 {[%emt 0:01:02]} ({But not} 26. Bxa7 $2 Nxa7 27. Ne3 Bc5 $19) (26. Ne1 $14) 26... Nd4 $11 {[%emt 0:01:02]} 27. Rxa7 {[%emt 0:00:16]} Nxb3 {[%emt 0:00:24]} 28. Rb7 {[%emt 0:00:25]} Rc4 {[%emt 0:00:02]} 29. Rb8+ {[%emt 0:00:10]} Kf7 {[%emt 0:00:03]} 30. Rb7+ {[%emt 0:00:00]} Kg8 {[%emt 0:00:02]} 31. Kg3 {[%emt 0:01:19]} Nd4 {[%emt 0:00:18]} 32. h4 {[%emt 0:00:44]} Bc5 {[%emt 0:00:31]} 33. Rb2 {[%emt 0:00:06]} Rc3 {[%emt 0:00:06]} 34. h5 {[%emt 0:00:20]} Nc6 {[%emt 0:00:59]} (34... h6 $11) 35. Bxc5 {[%emt 0:00:28]} Rxc5 $14 {[%emt 0:00:00][%mdl 4096] Endgame KRN-KRN} 36. g5 {[%emt 0:00:00] With the idea Ne3.} Nd4 {[%emt 0:00:56]} (36... Rc1 $1 $11) 37. Rb8+ $16 {[%emt 0:00:58]} Kf7 {[%emt 0:00:01]} 38. Rb7+ {[%emt 0:00:04]} Kg8 {[%emt 0:00:14] [#]} (38... Kf8 $142) 39. Rb8+ {[%emt 0:00:33]} (39. Ne3 $142 $1) 39... Kf7 {[%emt 0:00:01] [#]} 40. Nh4 {[%emt 0:00:00]} ({White should play} 40. Ne3 $1 $16) 40... Ne2+ $11 {[%emt 0:00:15]} 41. Kg4 {[%emt 0:00:24] g6+ would kill now.} Nf4 {[%emt 0:00:01] Inhibits g6+.} 42. g6+ {[%emt 0:00:02]} hxg6 {[%emt 0:00:03]} 43. hxg6+ {[%emt 0:00:23]} Nxg6 {[%emt 0:00:07] Hoping for ...Nf4.} 44. Nxg6 {[%emt 0:00:06]} Kxg6 {[%emt 0:00:00] KR-KR} 45. Rb6 {[%emt 0:00:15]} Kf6 {[%emt 0:00:02]} 46. Kg3 {[%emt 0:00:01]} Rc1 {[%emt 0:00:03]} 47. Ra6 {[%emt 0:00:02]} Rg1+ {[%emt 0:00:05]} 48. Kf2 {[%emt 0:00:02]} Rb1 {[%emt 0:00:02]} 49. Kg3 {[%emt 0:00:01]} Rc1 {[%emt 0:00:05]} 50. Rb6 {[%emt 0:00:02]} Rc8 {[%emt 0:00:13]} 51. Ra6 {[%emt 0:00:01]} Rh8 {[%emt 0:00:04]} 52. Rb6 {[%emt 0:00:03]} g5 {[%emt 0:00:08]} 53. Ra6 {[%emt 0:00:04] The position is equal.} Rh4 {[%emt 0:00:01]} 54. Kf2 {[%emt 0:00:34]} Rf4 {[%emt 0:00:07]} 55. Ke3 {[%emt 0:00:01]} Kf7 {[%emt 0:00:05]} 56. Ra5 {[%emt 0:00:09]} Kf6 {[%emt 0:00:01]} 57. Ra6 {[%emt 0:00:00]} Kf7 {[%emt 0:00:04]} 58. Ra5 {[%emt 0:00:01]} Kf6 {[%emt 0:00:01]} 59. Ra6 {[%emt 0:00:01] Weighted Error Value: White=0.10 (very precise) /Black=0.12 (very precise)} 1/2-1/2

[Event "MPL-4 Indian Chess Tour 2022"]
[Site "Chess24"]
[Date "2022.09.27"]
[Round "11.6"]
[White "Ganguly, Surya Shekhar"]
[Black "Karthikeyan, Murali"]
[Result "1-0"]
[ECO "B60"]
[WhiteElo "2589"]
[BlackElo "2623"]
[Annotator "TA"]
[PlyCount "63"]
[EventDate "2022.09.29"]
[EventType "tourn (rapid)"]
[EventCountry "NET"]
[SourceTitle "playchess.com"]
[Source "ChessBase"]
[SourceQuality "1"]
[WhiteTeam "India"]
[BlackTeam "India"]
[WhiteTeamCountry "IND"]
[BlackTeamCountry "IND"]
[TimeControl "900+10"]

{[%evp 11,63,22,50,24,17,17,39,39,38,40,54,26,57,44,55,16,43,43,44,45,43,43,205,45,46,47,49,48,104,73,71,68,75,70,112,104,114,110,120,114,145,147,160,118,171,66,66,72,97,97,100,104,784,776]} 1. e4 {[%emt 0:00:00]} c5 {[%emt 0:00:00]} 2. Nf3 {[%emt 0:00:02]} Nc6 {[%emt 0:00:01]} 3. Nc3 {[%emt 0:00:15]} d6 {[%emt 0:00:15]} 4. d4 {[%emt 0:00:04]} cxd4 {[%emt 0:00:00]} 5. Nxd4 {[%emt 0:00:00]} Nf6 {[%emt 0:00:00]} 6. Bg5 {[%emt 0:00:01]} a6 {[%emt 0:00:03]} 7. Nxc6 {[%emt 0:00:24] B60: Sicilian: Richter-Rauzer: Unusual Black 6th moves and 6...Bd7 without 7 Qd2.} bxc6 {[%emt 0:00:01]} 8. Bc4 {[%emt 0:00:06]} Qa5 {[%emt 0:00:30]} 9. Qd2 {[%emt 0:00:47] White is slightly better.} h6 {[%emt 0:00:34]} 10. Bxf6 {[%emt 0:00:02]} gxf6 {[%emt 0:00:00]} 11. O-O-O {[%emt 0:00:17]} e6 {[%emt 0:01:57] [#]} 12. Kb1 $146 {[%emt 0:00:08]} ({Predecessor:} 12. f4 h5 13. Kb1 Be7 14. Rhe1 Bb7 15. f5 e5 16. Re3 Rd8 17. Rd3 Qb4 18. Bb3 {½-½ (55) Hovhannisyan,R (2639)-Soumya,S (2365) Douglas 2019}) 12... Bb7 $1 {[%emt 0:00:34]} 13. f4 {[%emt 0:01:09]} (13. Qf4 $5 {[%cal Rf4f6]}) 13... d5 {[%emt 0:01:26] [#]} 14. Nxd5 $1 {[%emt 0:03:52]} Qxd2 {[%emt 0:00:06]} 15. Nc7+ {[%emt 0:00:02][%cal Bd5c7,Bc7a8,Ba8b6][%mdl 32]} Kd8 {[%emt 0:03:07]} 16. Nxa8 {[%emt 0:00:03] Really sharp!} (16. Rxd2+ $2 Kxc7 17. Rhd1 Bc8 $19) 16... Qxd1+ {[%emt 0:02:29]} 17. Rxd1+ {[%emt 0:00:00]} Kc8 {[%emt 0:00:01]} 18. Nb6+ {[%emt 0:00:08]} Kc7 {[%emt 0:00:01]} 19. Na4 {[%emt 0:00:22]} Bd6 {[%emt 0:00:04]} (19... Rg8 $14) 20. g3 {[%emt 0:00:42]} h5 {[%emt 0:00:03]} 21. Rf1 $36 {[%emt 0:01:10][%cal Oe4e5][%mdl 2048] White is more active.} h4 {[%emt 0:02:02]} 22. e5 {[%emt 0:00:24]} fxe5 {[%emt 0:01:29]} 23. fxe5 {[%emt 0:00:00]} Bxe5 {[%emt 0:00:00]} 24. Rxf7+ {[%emt 0:00:05]} Kb8 {[%emt 0:00:02][%cal Oe5g3]} 25. a3 {[%emt 0:02:37]} (25. Bxe6 $2 hxg3 26. Rf1 g2 $19) 25... Bc8 {[%emt 0:01:00]} 26. Nc5 {[%emt 0:01:51][%csl LRa6,LRe6]} a5 {[%emt 0:00:55]} 27. gxh4 {[%emt 0:00:59] White is much more active.} ({Resist} 27. Nxe6 hxg3 28. hxg3 Bxg3 $16) 27... Bd6 {[%emt 0:00:30]} (27... Bxh2 $16 28. Nb3 (28. Bxe6 Bxe6 29. Nxe6 Rxh4 $16) 28... Bc7) 28. Ne4 {[%emt 0:02:44]} ({Don't take} 28. Nxe6 $6 Rxh4 29. Bb3 Bxe6 30. Bxe6 Rxh2 $16) (28. Nb3 $18) 28... Bxh2 $14 {[%emt 0:00:04]} 29. Ng5 {[%emt 0:00:01]} e5 {[%emt 0:01:52]} 30. Nf3 {[%emt 0:00:10]} Bf4 {[%emt 0:00:01]} 31. Re7 {[%emt 0:00:01]} Rxh4 $2 {[%emt 0:00:32][%mdl 8192] [#]} 32. Nxh4 {[%emt 0:00:03] Weighted Error Value: White=0.13 (very precise) /Black=0.31} 1-0

[Event "MPL-4 Indian Chess Tour 2022"]
[Site "Chess24"]
[Date "2022.09.27"]
[Round "11.7"]
[White "Mendonca, Leon Luke"]
[Black "Adhiban, B.."]
[Result "1/2-1/2"]
[ECO "A80"]
[WhiteElo "2558"]
[BlackElo "2603"]
[Annotator "TA"]
[PlyCount "73"]
[EventDate "2022.09.29"]
[EventType "tourn (rapid)"]
[EventCountry "NET"]
[SourceTitle "playchess.com"]
[Source "ChessBase"]
[SourceQuality "1"]
[WhiteTeam "India"]
[BlackTeam "India"]
[WhiteTeamCountry "IND"]
[BlackTeamCountry "IND"]
[TimeControl "900+10"]

{[%evp 9,73,27,48,0,15,8,13,5,13,0,-4,0,9,11,0,0,27,-8,9,17,35,-37,-47,-49,-50,-39,-40,-36,-33,-67,-42,-96,-95,-96,-94,-118,-78,-108,-45,-68,-70,-69,-68,-68,-60,-60,-60,-60,-42,-42,-42,-42,-42,-42,-42,-42,-42,-42,-42,-42,0,-42,0,-42,0,-42]} 1. Nf3 {[%emt 0:00:00]} d6 {[%emt 0:00:00]} 2. d4 {[%emt 0:00:06]} f5 {[%emt 0:00:03]} 3. Nc3 {[%emt 0:00:37]} Nf6 {[%emt 0:00:05]} 4. Bg5 {[%emt 0:00:04][%cal Bc1g5,Bg5h4,Bh4g3][%mdl 32]} Nbd7 {[%emt 0:01:06]} 5. e3 {[%emt 0:00:08]} h6 {[%emt 0:00:05]} 6. Bh4 {[%emt 0:00:05] A80: Dutch Defence: Unusual White second moves.} (6. Bxf6 $5 Nxf6 7. Bd3 $14) 6... g5 {[%emt 0:00:49]} 7. Bg3 {[%emt 0:00:02]} Bg7 {[%emt 0:00:01]} 8. Bc4 {[%emt 0:00:33]} Nb6 {[%emt 0:00:14]} 9. Bb3 {[%emt 0:00:23]} e6 {[%emt 0:00:04] [#]} 10. h4 $146 {[%emt 0:00:39]} ({Predecessor:} 10. Qe2 Bd7 11. O-O-O Qe7 12. h4 g4 13. Nd2 O-O-O 14. e4 Nxe4 15. Ndxe4 fxe4 16. Qxe4 Rde8 17. Rhe1 h5 18. Re2 Qf6 {½-½ (18) Wagner,T (1941)-Herbst,A (1597) Korbach 2013}) 10... g4 {[%emt 0:00:34]} 11. Ng1 {[%emt 0:00:01]} Nh5 {[%emt 0:00:04]} 12. Nge2 {[%emt 0:00:03]} O-O {[%emt 0:00:19]} 13. Qd2 {[%emt 0:00:24]} a5 {[%emt 0:00:10] [#] aiming for ...a4.} 14. a3 {[%emt 0:00:31]} c5 {[%emt 0:03:19][%cal Bc7c5,Bc5c4][%mdl 32]} 15. Nf4 {[%emt 0:09:07]} (15. dxc5 $14 Nxg3 16. Nxg3 dxc5 17. O-O-O Qxd2+ 18. Rxd2) 15... Nxg3 $15 {[%emt 0:00:34]} 16. fxg3 {[%emt 0:01:22]} c4 {[%emt 0:00:02]} 17. Ba2 {[%emt 0:00:01]} d5 {[%emt 0:00:25] Against e4} 18. O-O {[%emt 0:00:14]} Bd7 {[%emt 0:00:19]} 19. Nce2 {[%emt 0:00:34]} Nc8 {[%emt 0:00:06]} 20. Nh5 {[%emt 0:00:13]} (20. b3 $15) 20... Nd6 $17 {[%emt 0:00:08]} 21. Nxg7 {[%emt 0:00:04]} Kxg7 {[%emt 0:00:02]} 22. c3 {[%emt 0:00:18]} Be8 {[%emt 0:00:41]} 23. Bb1 {[%emt 0:00:04]} Bf7 {[%emt 0:00:07]} (23... Ba4 $17) 24. Nf4 {[%emt 0:00:14]} b5 {[%emt 0:00:05]} 25. Bc2 {[%emt 0:00:10]} Qb6 {[%emt 0:00:06]} 26. Rfb1 {[%emt 0:00:26]} Rfb8 {[%emt 0:00:10]} 27. Kh2 {[%emt 0:00:06]} Ra7 {[%emt 0:02:11]} 28. b3 {[%emt 0:00:20]} Qc7 {[%emt 0:00:32]} 29. bxc4 {[%emt 0:00:27]} bxc4 {[%emt 0:00:05]} 30. Rxb8 {[%emt 0:00:04]} Qxb8 {[%emt 0:00:00]} 31. Rb1 {[%emt 0:00:01] Inhibits Qb2.} Rb7 {[%emt 0:00:00]} 32. Rxb7 {[%emt 0:00:19]} Qxb7 {[%emt 0:00:00]} 33. Qc1 {[%emt 0:00:15] Against Qb2} Kf6 {[%emt 0:00:19]} 34. Ne2 {[%emt 0:00:12][%cal Oe3e4]} Kg7 {[%emt 0:00:04]} 35. Nf4 {[%emt 0:00:06]} Kf6 {[%emt 0:00:04]} 36. Ne2 {[%emt 0:00:01][%cal Oe3e4]} Kg7 {[%emt 0:00:04]} 37. Nf4 {[%emt 0:00:07] Weighted Error Value: White=0.12 (very precise) /Black=0.14 (very precise)} 1/2-1/2

[Event "MPL-4 Indian Chess Tour 2022"]
[Site "Chess24"]
[Date "2022.09.27"]
[Round "11.8"]
[White "Mohammad Nubairshah Shaikh"]
[Black "Narayanan.S.L"]
[Result "1-0"]
[ECO "E91"]
[WhiteElo "2461"]
[BlackElo "2657"]
[Annotator "TA"]
[PlyCount "81"]
[EventDate "2022.09.29"]
[EventType "tourn (rapid)"]
[EventCountry "NET"]
[SourceTitle "playchess.com"]
[Source "ChessBase"]
[SourceQuality "1"]
[WhiteTeam "India"]
[BlackTeam "India"]
[WhiteTeamCountry "IND"]
[BlackTeamCountry "IND"]
[TimeControl "900+10"]

{[%evp 17,81,34,55,34,83,27,75,68,80,69,80,23,19,16,16,11,18,6,22,-1,28,29,61,61,57,25,58,68,67,58,138,37,26,26,106,39,81,28,39,30,88,88,106,49,112,96,112,102,115,111,96,89,431,436,379,386,572,569,535,535,517,509,29982,29983,29976,29977]} 1. d4 {[%emt 0:00:00]} Nf6 {[%emt 0:00:00]} 2. c4 {[%emt 0:00:04]} c5 {[%emt 0:00:14]} 3. d5 {[%emt 0:00:03]} g6 {[%emt 0:00:01]} 4. Nc3 {[%emt 0:00:02]} Bg7 {[%emt 0:00:01]} 5. e4 {[%emt 0:00:01]} d6 {[%emt 0:00:01]} 6. Nf3 {[%emt 0:00:16]} O-O {[%emt 0:00:01]} 7. Be2 {[%emt 0:00:16]} e6 {[%emt 0:00:08]} 8. O-O {[%emt 0:00:02]} Re8 {[%emt 0:00:02]} 9. h3 {[%emt 0:00:29]} Na6 {[%emt 0:00:13]} 10. Re1 {[%emt 0:00:11] E91: King's Indian: Classical: 6 Be2, unusual replies including 6...c5 and 6...Bg4.} Nc7 {[%emt 0:00:09]} (10... exd5 $14 {is more appropriate.} 11. exd5 Bf5) 11. Bf4 {[%emt 0:00:13]} (11. e5 $16 dxe5 12. d6) 11... e5 {[%emt 0:00:17] [#]} (11... b5 $11 {is superior.}) 12. Bd2 $146 {[%emt 0:00:48] White is better.} ({Predecessor:} 12. Be3 Nd7 13. Qc2 Rf8 14. Bd3 Nb6 15. a3 f5 16. exf5 gxf5 17. Bg5 Qd7 18. Nh4 {½-½ (158) Reuker,J (2399)-Fier,A (2562) Bremen 2020}) 12... Nh5 {[%emt 0:00:04]} 13. Rb1 {[%emt 0:00:04]} f5 {[%emt 0:00:04]} 14. b4 {[%emt 0:00:11]} (14. Nh2 $16) 14... cxb4 $11 {[%emt 0:00:08]} 15. Rxb4 {[%emt 0:00:02]} Na6 {[%emt 0:00:01]} 16. Rb5 {[%emt 0:00:43]} Nf6 {[%emt 0:00:13]} 17. exf5 {[%emt 0:03:09]} gxf5 {[%emt 0:00:02]} 18. Ng5 {[%emt 0:00:05]} Nc7 {[%emt 0:00:40]} 19. Rb3 {[%emt 0:00:19]} b6 {[%emt 0:00:02]} 20. Nb5 {[%emt 0:01:28]} Nxb5 {[%emt 0:00:18]} 21. Rxb5 {[%emt 0:00:31]} h6 {[%emt 0:00:03]} 22. Ne6 {[%emt 0:00:41]} Bxe6 {[%emt 0:00:03]} 23. dxe6 {[%emt 0:00:00]} Rxe6 {[%emt 0:00:01]} ({Black should try} 23... Qc8 $14) 24. a4 {[%emt 0:00:40]} (24. Bd3 $16) 24... Kh8 $14 {[%emt 0:00:20]} 25. a5 {[%emt 0:00:03]} bxa5 {[%emt 0:00:01] [#]} (25... d5 $1 $11 {keeps the balance.}) 26. Qc2 {[%emt 0:00:52]} ({Much less strong is} 26. Bxa5 Qf8 $14) ({Don't do} 26. Rxa5 d5 $11) (26. Bd3 $1 $16 {[%cal Rd3f5]}) 26... f4 {[%emt 0:01:07]} 27. Bf3 {[%emt 0:00:22]} ({White should play} 27. Ra1 $16) 27... Rc8 $11 {[%emt 0:00:05][%cal Oe5e4]} 28. Bb7 {[%emt 0:01:59][%cal Bf3b7,Bb7c6,Bc6d5][%mdl 32]} Rb8 {[%emt 0:00:22]} (28... Rc5 $1 $11) 29. Bxa5 $16 {[%emt 0:00:16]} Qe7 {[%emt 0:01:06] [#]} 30. Qf5 {[%emt 0:00:05]} (30. Reb1 $1 $16 {Hoping for Bd5.} e4 31. Bc3) 30... Rf8 {[%emt 0:00:44]} (30... e4 $14) 31. Bc6 $36 {[%emt 0:01:48][%mdl 3072] White has strong compensation. White is really pushing.} Nd7 {[%emt 0:00:48]} 32. Qc2 {[%emt 0:01:14] And now Rb7 would win. White has more active pieces.} Nc5 {[%emt 0:00:03] Against Rb7} 33. Bd5 {[%emt 0:00:24]} Ref6 {[%emt 0:00:03][%cal Of4f3]} 34. Bb4 {[%emt 0:00:25] A strong pair of Bishops.} Ne6 $2 {[%emt 0:01:04][%mdl 8192] Black cannot hold the game after this.} (34... a6 $16 {is a better chance.} 35. Rb6 Qd8 36. Bxc5 dxc5) 35. Rb7 $18 {[%emt 0:00:07][%cal Bb5b7,Bb7f7,Bf7g7][%mdl 32]} Qd8 {[%emt 0:00:04]} 36. Ra1 {[%emt 0:01:21]} Nd4 {[%emt 0:04:34]} (36... a5 {was worth a try.} 37. Bxa5 Qe8) 37. Qe4 {[%emt 0:00:05]} Nf5 {[%emt 0:00:02]} 38. Raxa7 {[%emt 0:00:08]} Rg6 {[%emt 0:00:52]} 39. Rf7 {[%emt 0:01:08]} Nh4 {[%emt 0:00:04] [#]} (39... Qg5 $18 40. Rxf8+ Bxf8) 40. Qxg6 $3 {[%emt 0:00:14][%mdl 512]} Nxg6 {[%emt 0:00:15]} 41. Rxg7 {[%emt 0:00:01] Weighted Error Value: White=0.18 (very precise) /Black=0.51} 1-0